bitfinex/quotes_SOLUSD_20250607
["timestamp","ask_amount","ask_price","bid_price","bid_amount"]
[1749276966345,6.61995537,151.06,151.02,129.94]
[1749276966734,43.43275908,151.07,151.02,129.94]
[1749276967138,43.43275908,151.07,151.02,140.7531475]
[1749276967338,43.43275908,151.07,151.04,10.8131475]
[1749276967339,26.0,151.07,151.04,10.8131475]
[1749276967537,17.43232102,151.08,151.05,40.24]
[1749276967732,10.8131475,151.08,151.05,40.24]
[1749276969045,49.96900413,151.09,151.05,140.7531475]
[1749276969484,45.02655511,151.09,151.05,140.7531475]
[1749276969949,45.02655511,151.09,151.05,129.94]
[1749276970252,34.21340761,151.09,151.05,140.7531475]
[1749276971750,26.0,151.09,151.06,10.8131475]
[1749276972047,6.61823276,151.1,151.07,40.22]
[1749276972257,43.43090831,151.11,151.07,51.0331475]
[1749276973856,6.61776081,151.11,151.07,51.0331475]
[1749276975043,6.61776081,151.11,151.07,140.7331475]
[1749276975237,17.43090831,151.11,151.07,140.7331475]
[1749276975469,17.43090831,151.11,151.07,89.7]
[1749276975470,10.8131475,151.08,151.07,89.7]
[1749276976863,17.43215729,151.08,151.07,89.7]
[1749276977461,6.61900979,151.08,151.07,89.7]
[1749276980946,6.61900979,151.08,151.06,40.22]
[1749276982152,17.43215729,151.08,151.03,10.32]
[1749276982356,10.8131475,151.06,151.04,40.22]
[1749276982555,10.8131475,151.06,151.03,10.32]
[1749276982753,10.8131475,151.06,151.04,40.22]
[1749276984581,6.62032439,151.05,151.04,40.22]
[1749276984770,17.43347189,151.05,151.04,89.7]
[1749276984952,18.64964886,151.04,150.99,10.32]
[1749276985146,10.8131475,151.01,151.0,40.22]
[1749276985349,10.8131475,151.01,150.99,100.02]
[1749276985556,10.8131475,151.01,150.99,140.24]
[1749276991074,10.8131475,151.02,150.99,140.24]
[1749276992784,6.62148238,151.03,150.99,140.24]
[1749276992963,10.8131475,151.02,150.99,140.24]
[1749276996487,10.8131475,151.02,150.99,100.02]
[1749276996669,10.8131475,151.02,151.0,40.22]
[1749277001682,10.8131475,151.02,151.0,129.92]
[1749277003286,17.43491724,151.02,151.0,129.92]
[1749277003488,10.8131475,151.01,150.99,50.54]
[1749277004165,10.8131475,151.01,150.99,10.32]
[1749277006591,10.8131475,151.0,150.99,10.32]
[1749277006791,10.8131475,151.0,150.99,100.02]
[1749277008309,17.43566405,151.0,150.98,89.7]
[1749277008478,30.99479636,150.99,150.98,89.7]
[1749277008670,6.62383254,150.97,150.94,129.92]
[1749277008867,10.8131475,150.95,150.94,89.7]
[1749277009097,10.8131475,150.95,150.92,40.22]
[1749277009402,10.8131475,150.94,150.92,40.22]
[1749277009604,26.0,150.95,150.92,10.8131475]
[1749277009770,10.8131475,150.97,150.93,51.0331475]
[1749277011885,43.43663621,150.98,150.93,57.65872917]
[1749277013398,43.43663621,150.98,150.93,147.35872917]
[1749277014391,36.8131475,150.98,150.93,147.35872917]
[1749277014992,36.8131475,150.98,150.94,10.8131475]
[1749277016699,26.0,150.98,150.95,10.8131475]
[1749277016907,26.0,150.98,150.96,40.24]
[1749277020789,4.9342691,151.02,150.97,10.8131475]
[1749277020991,6.3936,151.03,150.97,10.8131475]
[1749277020992,61.85639636,151.03,150.99,10.8131475]
[1749277021301,61.85639636,151.03,150.99,51.0531475]
[1749277021484,17.43493928,151.02,150.99,40.24]
[1749277021681,6.0545,150.98,150.93,40.24]
[1749277021890,10.8131475,150.96,150.93,89.7]
[1749277022311,10.8131475,150.94,150.93,89.7]
[1749277022477,10.8131475,150.94,150.92,40.24]
[1749277023185,10.8131475,150.94,150.91,100.02]
[1749277023403,17.43817833,150.95,150.91,140.26]
[1749277025109,10.8131475,150.94,150.91,140.26]
[1749277027987,17.43832615,150.94,150.91,140.26]
[1749277028524,17.43794893,150.95,150.91,140.26]
[1749277029990,17.43794893,150.95,150.91,100.02]
[1749277030194,17.43794893,150.95,150.91,140.26]
[1749277030636,17.43794893,150.95,150.91,151.0731475]
[1749277033013,17.43794893,150.95,150.91,140.26]
[1749277033816,32.62441115,150.96,150.92,10.8131475]
[1749277033994,43.43755865,150.96,150.92,10.8131475]
[1749277034497,6.0545,150.98,150.92,10.8131475]
[1749277034498,12.67823079,150.98,150.94,10.8131475]
[1749277034819,26.0,150.98,150.95,51.0531475]
[1749277035007,4.93626264,151.01,150.97,10.8131475]
[1749277035312,38.60364792,151.09,150.97,10.8131475]
[1749277035313,4.93626264,151.1,150.99,7.9626]
[1749277035485,36.8131475,151.1,151.04,10.8131475]
[1749277035688,36.8131475,151.1,151.05,40.34]
[1749277036119,10.8131475,151.1,151.05,40.34]
[1749277036295,10.8131475,151.1,151.05,51.1531475]
[1749277036497,43.43132682,151.1,151.05,51.1531475]
[1749277037091,43.43132682,151.1,151.05,40.34]
[1749277037092,18.64964886,151.09,151.05,40.34]
[1749277037289,10.8131475,151.08,151.05,40.34]
[1749277038389,6.61900979,151.08,151.05,40.34]
[1749277038599,6.61900979,151.08,151.05,51.1531475]
[1749277039830,6.6186151,151.09,151.05,51.1531475]
[1749277039990,17.4317626,151.09,151.05,51.1531475]
[1749277040424,6.6186151,151.09,151.05,140.8531475]
[1749277041702,51.49228146,151.1,151.05,140.8531475]
[1749277041920,34.26553396,151.1,151.06,10.8131475]
[1749277043431,8.26553396,151.1,151.06,10.8131475]
[1749277044817,19.07868146,151.1,151.06,10.8131475]
[1749277045019,19.07868146,151.1,151.05,140.8531475]
[1749277046812,19.07868146,151.1,151.06,10.8131475]
[1749277047933,19.07868146,151.1,151.05,140.8531475]
[1749277051030,19.07868146,151.1,151.06,10.8131475]
[1749277051907,19.07868146,151.1,151.06,100.5131475]
[1749277053007,19.07868146,151.1,151.06,89.7]
[1749277053939,10.8131475,151.09,151.06,89.7]
[1749277055510,18.64964886,151.06,151.03,89.7]
[1749277055710,10.8131475,151.04,151.03,89.7]
[1749277056532,36.8131475,151.04,151.0,140.3]
[1749277056745,10.8131475,151.02,151.0,140.3]
[1749277057127,10.8131475,151.02,151.0,130.0]
[1749277057545,17.43505332,151.02,151.0,89.7]
[1749277058421,26.0,151.04,151.0,89.7]
[1749277058627,36.8131475,151.04,151.0,100.5131475]
[1749277059622,43.43402969,151.04,151.0,100.5131475]
[1749277065044,32.62088219,151.04,151.0,100.5131475]
[1749277065347,43.43402969,151.04,151.01,40.3]
[1749277066541,32.62088219,151.04,151.01,40.3]
[1749277066744,32.62088219,151.04,151.01,130.0]
[1749277075762,26.0,151.04,151.01,130.0]
[1749277076055,26.0,151.04,151.01,140.8131475]
[1749277081043,43.43396362,151.04,151.01,130.0]
[1749277081230,32.62081612,151.04,151.01,130.0]
[1749277081430,6.62081612,151.04,151.01,130.0]
[1749277083762,43.4336189,151.05,151.01,130.0]
[1749277083940,36.8131475,151.05,151.01,130.0]
[1749277084252,43.43359998,151.05,151.01,130.0]
[1749277084957,10.8131475,151.04,151.01,130.0]
[1749277085961,10.8131475,151.02,151.01,130.0]
[1749277086160,10.8131475,151.02,151.01,89.7]
[1749277087056,17.43478701,151.02,151.01,89.7]
[1749277087256,6.62163951,151.02,151.01,89.7]
[1749277089739,17.43478701,151.02,151.01,89.7]
[1749277091039,43.43478701,151.02,150.99,40.22]
[1749277091251,10.8131475,151.01,150.99,40.22]
[1749277091733,6.62251655,151.0,150.97,89.7]
[1749277091936,6.62251655,151.0,150.98,40.22]
[1749277093644,17.43537243,151.01,150.98,40.22]
[1749277094458,10.8131475,151.0,150.97,89.7]
[1749277094648,10.8131475,151.0,150.97,129.92]
[1749277095259,10.8131475,151.0,150.97,89.7]
[1749277095762,6.62295516,150.99,150.97,89.7]
[1749277098972,17.43610266,150.99,150.97,89.7]
[1749277099144,17.43610266,150.99,150.94,100.5131475]
[1749277099145,10.8131475,150.98,150.94,100.5131475]
[1749277099465,10.8131475,150.98,150.94,89.7]
[1749277099867,17.43686373,150.98,150.94,89.7]
[1749277100049,17.43686373,150.98,150.94,100.5131475]
[1749277100360,1.5056,150.99,150.94,96.32510226]
[1749277100546,16.8308475,151.01,150.97,10.8131475]
[1749277101567,6.62258387,151.0,150.97,10.8131475]
[1749277102249,10.8131475,151.01,150.97,10.8131475]
[1749277102445,36.8131475,151.02,150.97,10.8131475]
[1749277102645,36.8131475,151.02,150.98,10.8131475]
[1749277103860,26.0,151.02,150.99,10.8131475]
[1749277104081,6.62089497,151.04,151.0,10.8131475]
[1749277104284,26.0,151.03,151.0,10.8131475]
[1749277105776,26.0,151.03,151.0,100.5131475]
[1749277106074,26.0,151.02,151.01,10.8131475]
[1749277107357,26.0,151.03,151.01,10.8131475]
[1749277107550,26.0,151.05,151.02,10.8131475]
[1749277107749,18.64964886,151.06,151.03,10.8131475]
[1749277107964,26.0,151.04,151.03,10.8131475]
[1749277108171,18.64964886,151.06,151.03,10.8131475]
[1749277108355,26.0,151.04,151.03,10.8131475]
[1749277111151,11.57022822,151.08,151.03,10.8131475]
[1749277111357,26.0,151.06,151.05,10.8131475]
[1749277111783,26.0,151.06,151.04,10.8131475]
[1749277113075,26.0,151.06,151.05,10.8131475]
[1749277115061,32.61909114,151.08,151.05,10.8131475]
[1749277115276,26.0,151.08,151.05,10.8131475]
[1749277115488,26.0,151.08,151.06,10.8131475]
[1749277116572,26.0,151.08,151.05,10.8131475]
[1749277117062,26.0,151.08,151.05,100.5131475]
[1749277117270,26.0,151.08,151.06,10.8131475]
[1749277118066,56.02283144,151.11,151.07,10.8131475]
[1749277118067,33.17813041,151.11,151.07,10.8131475]
[1749277118265,24.97013508,151.11,151.08,10.8131475]
[1749277118591,24.97013508,151.11,151.09,10.8131475]
[1749277119473,24.97013508,151.11,151.1,10.8131475]
[1749277120878,32.61739971,151.12,151.1,10.8131475]
[1749277122162,29.46279636,151.11,151.07,89.7]
[1749277122374,10.8131475,151.1,151.07,89.7]
[1749277122789,6.61857171,151.09,151.07,89.7]
[1749277122991,8.26047171,151.09,151.07,89.7]
[1749277125294,19.07361921,151.09,151.07,89.7]
[1749277138988,8.26047171,151.09,151.07,89.7]
[1749277140717,6.61857171,151.09,151.07,89.7]
[1749277143882,6.6181738,151.1,151.07,89.7]
[1749277144084,1.5974,151.13,151.09,10.8131475]
[1749277144297,10.8131475,151.14,151.09,10.8131475]
[1749277144692,32.61695045,151.13,151.09,10.8131475]
[1749277145022,32.61695045,151.13,151.1,10.8131475]
[1749277149523,32.61695045,151.13,151.1,100.5131475]
[1749277153929,32.61695045,151.13,151.12,10.8131475]
[1749277153930,26.0,151.13,151.12,10.8131475]
[1749277154102,26.0,151.13,151.12,100.5131475]
[1749277154301,4.94646992,151.15,151.12,100.5131475]
[1749277154504,4.94646992,151.16,151.13,10.8131475]
[1749277154717,4.94646992,151.15,151.13,10.8131475]
[1749277155026,4.94646992,151.16,151.13,10.8131475]
[1749277155211,4.94646992,151.15,151.13,10.8131475]
[1749277155414,11.56198004,151.16,151.13,10.8131475]
[1749277155727,4.94646992,151.15,151.13,10.8131475]
[1749277156112,4.94646992,151.15,151.12,89.7]
[1749277156425,4.94646992,151.15,151.12,100.5131475]
[1749277156603,22.37512754,151.16,151.12,100.5131475]
[1749277157410,11.56198004,151.16,151.13,10.8131475]
[1749277157920,26.0,151.14,151.12,100.5131475]
[1749277159226,43.42865762,151.16,151.12,100.5131475]
[1749277160536,32.61551012,151.16,151.13,10.8131475]
[1749277164333,32.61551012,151.16,151.13,100.5131475]
[1749277165238,32.61551012,151.16,151.13,96.60734129]
[1749277167140,39.52285141,151.16,151.13,89.7]
[1749277167445,6.90734129,151.14,151.13,89.7]
[1749277169350,43.41327301,151.14,151.13,89.7]
[1749277170455,43.41327301,151.14,151.1,10.79689085]
[1749277170456,43.41327301,151.14,151.1,100.49689085]
[1749277175525,32.61638216,151.14,151.11,10.79689085]
[1749277176131,32.61638216,151.14,151.11,100.49689085]
[1749277176347,6.61638216,151.14,151.11,100.49689085]
[1749277178129,6.61594442,151.15,151.11,100.49689085]
[1749277178329,17.41283527,151.15,151.11,100.49689085]
[1749277180552,6.61594442,151.15,151.11,100.49689085]
[1749277180854,17.41283527,151.15,151.11,100.49689085]
[1749277181043,6.61594442,151.15,151.11,100.49689085]
[1749277181359,6.61594442,151.15,151.12,10.79689085]
[1749277182029,6.61594442,151.15,151.12,100.49689085]
[1749277182237,17.41283527,151.15,151.12,89.7]
[1749277183943,22.35930519,151.15,151.12,89.7]
[1749277186341,22.36293655,151.15,151.12,89.7]
[1749277186944,4.95010128,151.14,151.12,89.7]
[1749277187142,15.74699213,151.14,151.12,89.7]
[1749277187345,6.61681995,151.13,151.12,89.7]
[1749277187539,11.56692123,151.13,151.12,89.7]
[1749277189254,4.95010128,151.13,151.12,96.6097247]
[1749277189464,6.61649399,151.14,151.12,96.6097247]
[1749277189766,11.56659527,151.14,151.12,96.6097247]
[1749277189945,6.61649399,151.14,151.12,96.6097247]
[1749277190147,11.56659527,151.14,151.12,96.6097247]
[1749277190352,4.95010128,151.15,151.12,96.6097247]
[1749277190553,4.95010128,151.14,151.13,6.9097247]
[1749277190747,4.95010128,151.16,151.13,96.6097247]
[1749277190954,4.95010128,151.15,151.13,96.6097247]
[1749277191265,4.95010128,151.14,151.13,89.7]
[1749277192871,4.95635542,151.14,151.13,89.7]
[1749277194568,11.57273758,151.14,151.13,89.7]
[1749277194754,6.61638216,151.14,151.13,89.7]
[1749277194953,11.57273758,151.14,151.13,89.7]
[1749277195154,6.61638216,151.14,151.13,89.7]
[1749277195346,11.57273758,151.14,151.13,89.7]
[1749277201771,22.36562141,151.14,151.13,89.7]
[1749277201963,26.0,151.13,151.08,89.7]
[1749277202200,22.36649705,151.12,151.08,89.7]
[1749277202356,4.95635542,151.11,151.08,89.7]
[1749277202546,4.95933869,151.11,151.08,89.7]
[1749277202753,10.79288383,151.11,151.08,89.7]
[1749277202951,10.79288383,151.09,151.08,89.7]
[1749277203171,15.75272668,151.09,151.08,89.7]
[1749277203562,10.79288383,151.09,151.08,89.7]
[1749277203766,15.75272668,151.09,151.08,89.7]
[1749277204066,22.37129839,151.09,151.08,89.7]
[1749277204655,32.61815726,151.1,151.08,89.7]
[1749277204866,37.57287592,151.1,151.08,89.7]
[1749277205172,32.61815726,151.1,151.08,89.7]
[1749277205379,26.0,151.09,151.08,89.7]
[1749277205848,4.95451363,151.11,151.08,100.49288383]
[1749277206048,10.79288383,151.12,151.08,100.49288383]
[1749277206049,26.0,151.12,151.09,10.79288383]
[1749277206376,26.0,151.12,151.08,100.49288383]
[1749277206671,32.61741501,151.12,151.08,100.49288383]
[1749277208157,6.61741501,151.12,151.09,10.79288383]
[1749277208469,6.61741501,151.12,151.08,89.7]
[1749277208470,6.6169526,151.13,151.1,10.79288383]
[1749277210166,26.0,151.14,151.11,10.79288383]
[1749277210551,32.61646308,151.14,151.11,10.79288383]
[1749277212780,43.40934691,151.14,151.09,10.79288383]
[1749277213079,15.74617262,151.13,151.09,10.79288383]
[1749277214257,22.36343042,151.12,151.08,89.7]
[1749277214464,10.79288383,151.11,151.08,89.7]
[1749277214672,10.79288383,151.1,151.08,89.7]
[1749277215391,10.79288383,151.11,151.08,89.7]
[1749277215690,10.79288383,151.09,151.08,89.7]
[1749277216185,60.39582148,151.09,151.08,89.7]
[1749277217064,18.64964886,151.08,151.02,89.7]
[1749277217365,10.79288383,151.06,151.02,89.7]
[1749277217766,6.62032439,151.05,151.02,89.7]
[1749277217967,6.62032439,151.05,151.02,100.49288383]
[1749277218889,17.41289558,151.06,151.02,100.49288383]
[1749277219185,43.41289558,151.06,151.02,89.7]
[1749277223788,43.41289558,151.06,151.02,100.49288383]
[1749277224183,32.62001175,151.06,151.02,100.49288383]
[1749277225714,43.41289558,151.06,151.02,89.7]
[1749277226592,43.41289558,151.06,151.02,100.49288383]
[1749277226800,17.41364654,151.04,151.02,89.7]
[1749277227000,10.79288383,151.03,150.98,10.79288383]
[1749277227310,10.79288383,151.02,150.98,100.49288383]
[1749277228786,17.41472454,151.02,150.98,100.49288383]
[1749277229117,10.79288383,151.02,150.98,100.49288383]
[1749277229510,36.79288383,151.03,150.98,100.49288383]
[1749277231196,36.79288383,151.03,150.98,107.11623764]
[1749277240817,36.79288383,151.03,150.99,17.4158184]
[1749277241311,36.79288383,151.03,150.99,107.1158184]
[1749277245717,36.79288383,151.03,150.99,89.7]
[1749277245914,36.79288383,151.03,150.99,100.49288383]
[1749277246124,36.79288383,151.03,150.99,107.11582758]
[1749277249328,36.79288383,151.03,150.99,96.32294375]
[1749277250210,36.79288383,151.03,150.99,107.11582758]
[1749277251227,32.91976467,151.03,150.99,103.24270842]
[1749277251432,26.0,151.02,150.99,103.24270842]
[1749277254811,1.5449,151.06,151.01,6.91976467]
[1749277255118,1.5449,151.06,151.03,6.91976467]
[1749277255432,32.6282,151.07,151.03,96.61976467]
[1749277256134,6.91976467,151.06,151.03,89.7]
[1749277256341,6.91976467,151.05,151.03,89.7]
[1749277257432,10.80946416,151.05,151.03,89.7]
[1749277261136,36.80946416,151.07,151.03,107.13058392]
[1749277261338,36.80946416,151.07,151.05,10.80946416]
[1749277261339,30.93590925,151.07,151.05,10.80946416]
[1749277261542,26.0,151.07,151.05,10.80946416]
[1749277261840,26.0,151.07,151.05,100.50946416]
[1749277262343,4.93590925,151.08,151.05,100.50946416]
[1749277265243,48.36405771,151.09,151.05,100.50946416]
[1749277265418,41.74537341,151.09,151.05,107.12974904]
[1749277265621,26.0,151.09,151.06,10.80946416]
[1749277266017,26.0,151.09,151.07,10.80946416]
[1749277266238,26.0,151.09,151.07,100.50946416]
[1749277267127,36.07684316,151.11,151.08,10.80946416]
[1749277267128,4.93590925,151.11,151.08,10.80946416]
[1749277267440,6.50720925,151.14,151.1,10.80946416]
[1749277267645,26.0,151.12,151.11,10.80946416]
[1749277270325,26.0,151.12,151.1,100.50946416]
[1749277270943,32.61738223,151.12,151.1,89.7]
[1749277275128,1.5713,151.14,151.11,10.80946416]
[1749277275339,27.5713,151.14,151.11,10.80946416]
[1749277275546,34.18772855,151.14,151.1,100.50946416]
[1749277275946,44.99719271,151.14,151.1,100.50946416]
[1749277276745,34.18772855,151.14,151.1,100.50946416]
[1749277276943,32.61642855,151.14,151.1,100.50946416]
[1749277277641,43.42589271,151.14,151.1,100.50946416]
[1749277278435,43.42589271,151.14,151.1,89.7]
[1749277279750,29.45911302,151.13,151.1,89.7]
[1749277280267,18.64964886,151.13,151.1,89.7]
[1749277281061,43.42589271,151.14,151.1,100.50946416]
[1749277281555,32.61642855,151.14,151.1,100.50946416]
[1749277281756,32.61642855,151.14,151.11,10.80946416]
[1749277282655,32.61642855,151.14,151.11,100.50946416]
[1749277283460,32.61642855,151.14,151.11,89.7]
[1749277289374,6.61642855,151.14,151.11,100.50946416]
[1749277289668,6.61642855,151.14,151.12,10.80946416]
[1749277290248,26.0,151.17,151.13,10.80946416]
[1749277290455,23.04788595,151.2,151.13,89.7]
[1749277290456,6.61419406,151.19,151.13,89.7]
[1749277290666,26.0,151.18,151.15,10.80946416]
[1749277292139,6.53639929,151.22,151.17,10.80946416]
[1749277292140,6.61337323,151.21,151.17,10.80946416]
[1749277292453,32.61337323,151.21,151.18,10.80946416]
[1749277294351,32.61337323,151.21,151.17,100.50946416]
[1749277295067,26.0,151.21,151.18,10.80946416]
[1749277296055,32.61340744,151.21,151.17,100.50946416]
[1749277297975,26.0,151.21,151.18,10.80946416]
[1749277298473,26.0,151.21,151.17,100.50946416]
[1749277298989,32.6134239,151.21,151.17,100.50946416]
[1749277299964,26.0,151.21,151.19,10.80946416]
[1749277302681,26.0,151.21,151.18,10.80946416]
[1749277302882,32.6133503,151.21,151.17,89.7]
[1749277303060,32.6133503,151.21,151.17,100.50946416]
[1749277303262,26.0,151.21,151.18,10.80946416]
[1749277303465,26.0,151.21,151.19,10.80946416]
[1749277307188,26.0,151.21,151.18,100.50946416]
[1749277309390,32.61332029,151.21,151.18,100.50946416]
[1749277309592,26.0,151.21,151.18,100.50946416]
[1749277310885,32.6134229,151.21,151.18,100.50946416]
[1749277312686,32.6134229,151.21,151.18,89.7]
[1749277312881,32.6134229,151.21,151.18,100.50946416]
[1749277313290,26.0,151.19,151.18,89.7]
[1749277313588,36.80946416,151.19,151.18,89.7]
[1749277314287,43.42365822,151.19,151.18,89.7]
[1749277316676,43.42365822,151.19,151.15,89.7]
[1749277316902,34.25609406,151.19,151.15,89.7]
[1749277317088,45.06555822,151.19,151.15,89.7]
[1749277318085,17.42448318,151.18,151.15,89.7]
[1749277320105,26.0,151.16,151.15,89.7]
[1749277325388,43.4249709,151.16,151.15,89.7]
[1749277325590,43.4249709,151.16,151.11,89.7]
[1749277325909,10.80946416,151.12,151.09,89.7]
[1749277326496,10.80946416,151.11,151.01,26.0]
[1749277326710,10.80946416,151.11,151.06,10.80946416]
[1749277326917,10.80946416,151.11,151.07,10.80946416]
[1749277327615,17.42745921,151.11,151.06,89.7]
[1749277327813,17.42745921,151.11,151.07,10.80946416]
[1749277330021,17.42745921,151.11,151.07,100.50946416]
[1749277340824,10.80946416,151.1,151.07,89.7]
[1749277341030,6.61857171,151.09,151.07,89.7]
[1749277343532,39.53182414,151.1,151.07,89.7]
[1749277344521,6.61681995,151.13,151.09,6.91354227]
[1749277344847,32.61681995,151.13,151.1,6.91354227]
[1749277345029,32.61681995,151.13,151.1,96.61354227]
[1749277345333,32.61681995,151.13,151.1,100.49699203]
[1749277346336,26.0,151.13,151.11,10.79699203]
[1749277347128,26.0,151.13,151.11,100.49699203]
[1749277351212,32.61683302,151.13,151.11,89.7]
[1749277366739,39.52706089,151.13,151.11,89.7]
[1749277369528,32.61683302,151.13,151.11,89.7]
[1749277377243,37.56956846,151.13,151.11,89.7]
[1749277377553,32.61683302,151.13,151.11,89.7]
[1749277377862,37.57048266,151.13,151.11,89.7]
[1749277378375,32.61683302,151.13,151.11,89.7]
[1749277379470,26.0,151.13,151.11,89.7]
[1749277379764,11.56967471,151.16,151.11,89.7]
[1749277379953,37.56967471,151.16,151.12,6.91022787]
[1749277380270,11.56967471,151.16,151.12,6.91022787]
[1749277380459,37.56967471,151.16,151.12,6.91022787]
[1749277381634,26.0,151.16,151.13,6.91022787]
[1749277382393,4.95262189,151.17,151.15,6.91022787]
[1749277382549,26.0,151.16,151.15,96.61022787]
[1749277382755,26.0,151.16,151.15,89.7]
[1749277387847,32.61550674,151.16,151.15,89.7]
[1749277390149,63.12529432,151.16,151.15,89.7]
[1749277390552,44.47564546,151.16,151.15,89.7]
[1749277392263,44.47564546,151.16,151.12,6.91022787]
[1749277393471,44.47564546,151.16,151.11,96.61022787]
[1749277395363,6.91022787,151.15,151.11,89.7]
[1749277395668,11.86013872,151.15,151.11,96.61022787]
[1749277397166,6.61638216,151.14,151.11,96.61022787]
[1749277399568,18.47652088,151.14,151.11,89.7]
[1749277399770,13.52661003,151.14,151.11,89.7]
[1749277399960,18.47652088,151.14,151.11,89.7]
[1749277400267,6.91022787,151.13,151.11,89.7]
[1749277400459,32.91022787,151.13,151.09,89.7]
[1749277400643,6.91022787,151.11,151.09,89.7]
[1749277401570,13.52829575,151.11,151.09,89.7]
[1749277404987,26.0,151.1,151.09,89.7]
[1749277405272,4.94991085,151.14,151.09,103.22876167]
[1749277405473,4.94991085,151.14,151.1,6.91022787]
[1749277405788,26.0,151.12,151.1,6.91022787]
[1749277407275,39.52725003,151.13,151.09,96.61022787]
[1749277408175,39.52725003,151.13,151.09,89.7]
[1749277408499,13.5276307,151.12,151.09,89.7]
[1749277409358,6.61740283,151.12,151.09,89.7]
[1749277410655,13.5276307,151.12,151.09,89.7]
[1749277413385,6.91022787,151.11,151.09,89.7]
[1749277413894,51.55987673,151.1,151.09,89.7]
[1749277414969,58.17801041,151.1,151.04,6.91022787]
[1749277415182,6.91022787,151.09,151.04,96.61022787]
[1749277415562,6.91022787,151.09,151.05,6.91022787]
[1749277416192,58.17801041,151.1,151.05,6.91022787]
[1749277417162,26.0,151.08,151.06,6.91022787]
[1749277418887,26.0,151.08,151.06,96.61022787]
[1749277419583,26.0,151.08,151.06,89.7]
[1749277425589,26.0,151.08,151.06,96.61022787]
[1749277436394,18.41899998,151.12,151.07,6.91022787]
[1749277436694,26.0,151.11,151.08,6.91022787]
[1749277436895,26.0,151.11,151.08,96.61022787]
[1749277437286,4.94797211,151.13,151.1,6.91022787]
[1749277437487,4.94797211,151.17,151.12,6.91022787]
[1749277437678,4.94797211,151.17,151.13,6.91022787]
[1749277437878,26.0,151.15,151.13,6.91022787]
[1749277439380,39.5262244,151.15,151.12,89.7]
[1749277441093,6.91022787,151.14,151.12,89.7]
[1749277441805,39.5262244,151.15,151.12,89.7]
[1749277442104,44.47419651,151.15,151.12,89.7]
[1749277442303,39.5262244,151.15,151.12,89.7]
[1749277442506,44.47419651,151.15,151.12,89.7]
[1749277442691,39.5262244,151.15,151.12,89.7]
[1749277443009,44.47419651,151.15,151.12,89.7]
[1749277443194,39.5262244,151.15,151.12,89.7]
[1749277443399,44.47419651,151.15,151.12,89.7]
[1749277443699,39.5262244,151.15,151.12,89.7]
[1749277443898,44.47419651,151.15,151.12,89.7]
[1749277444101,39.5262244,151.15,151.12,89.7]
[1749277444302,44.47419651,151.15,151.12,89.7]
[1749277444505,6.91022787,151.14,151.12,89.7]
[1749277446401,13.5270313,151.14,151.12,89.7]
[1749277448311,13.5270313,151.14,151.1,6.91022787]
[1749277452210,6.61680343,151.14,151.1,6.91022787]
[1749277454212,37.56406458,151.15,151.11,6.91022787]
[1749277454416,32.61609247,151.15,151.12,6.91022787]
[1749277454718,37.56406458,151.15,151.12,6.91022787]
[1749277454916,26.0,151.15,151.12,6.91022787]
[1749277456221,25.55987673,151.17,151.13,6.91022787]
[1749277456222,11.56315882,151.17,151.13,6.91022787]
[1749277456429,11.56315882,151.17,151.12,96.31715085]
[1749277456430,32.61518671,151.17,151.14,6.91022787]
[1749277456933,6.91022787,151.16,151.12,89.7]
[1749277457135,26.0,151.14,151.12,89.7]
[1749277457440,32.91022787,151.14,151.12,89.7]
[1749277458714,39.52704782,151.13,151.1,89.7]
[1749277458923,26.0,151.12,151.1,89.7]
[1749277460023,32.91022787,151.11,151.1,89.7]
[1749277460400,51.55987673,151.11,151.05,96.61022787]
[1749277460609,6.91022787,151.08,151.05,89.7]
[1749277460803,6.91022787,151.06,151.03,89.7]
[1749277461005,6.91022787,151.06,151.01,6.91022787]
[1749277461203,6.61944793,151.07,150.99,96.32287821]
[1749277461204,26.0,151.04,151.0,6.91022787]
[1749277462225,26.0,151.04,151.01,6.91022787]
[1749277463325,26.0,151.04,151.01,10.80984474]
[1749277470004,32.62085142,151.04,151.01,10.80984474]